fUSD/lending_fUSD_20241227
["ID","MTS","AMOUNT","RATE_DAILY","PERIOD"]
[346836212,1735314650261,-1900.0,0.00011255,2]
[346836213,1735314650271,-924.0,0.00011255,2]
[346836214,1735314650281,-819.0,0.00011255,2]
[346836215,1735314650290,-1256.0,0.00011255,2]
[346836216,1735314650299,-3772.0,0.00011255,2]
[346836217,1735314650309,-3685.0,0.00011255,2]
[346836218,1735314650318,-536.0,0.00011255,2]
[346836219,1735314650328,-250.0,0.00011255,2]
[346836220,1735314650338,-1171.0,0.00011255,2]
[346836221,1735314650347,-150.0,0.00011255,2]
[346836222,1735314650360,-150.0,0.00011255,2]
[346836223,1735314650369,-156.592,0.00011255,2]
[346836224,1735314650379,-9600.0,0.00011255,2]
[346836225,1735314650389,-3889.0,0.00011255,2]
[346836226,1735314650398,-150.0,0.00011255,2]
[346836227,1735314650408,-150.0,0.00011269,2]
[346836228,1735314650417,-150.0,0.00011269,2]
[346836229,1735314650427,-150.22,0.00011269,2]
[346836230,1735314650437,-408.76398709,0.00011273,2]
[346836231,1735314650447,-1830.05,0.00011308,2]
[346836232,1735314650456,-500.0,0.00011308,2]
[346836233,1735314650467,-500.0,0.00011308,2]
[346836234,1735314650476,-568.85,0.00011308,2]
[346836235,1735314650486,-500.0,0.00011308,2]
[346836236,1735314650496,-1250.01,0.00011308,2]
[346836237,1735314650506,-500.0,0.00011308,2]
[346836238,1735314650515,-661.99,0.00011308,2]
[346836239,1735314650525,-546.18,0.00011308,2]
[346836240,1735314650535,-500.0,0.00011308,2]
[346836241,1735314650545,-2535.94,0.00011308,2]
[346836242,1735314650554,-500.0,0.00011308,2]
[346836243,1735314650564,-529.83,0.00011308,2]
[346836244,1735314650573,-719.28,0.00011308,2]
[346836245,1735314650583,-500.0,0.00011308,2]
[346836246,1735314650592,-500.0,0.00011308,2]
[346836247,1735314650602,-500.0,0.00011308,2]
[346836248,1735314650615,-680.34,0.00011308,2]
[346836249,1735314650625,-650.59,0.00011308,2]
[346836250,1735314650635,-868.96,0.00011308,2]
[346836251,1735314650645,-500.0,0.00011308,2]
[346836252,1735314650655,-4704.19,0.00011308,2]
[346836253,1735314650665,-500.0,0.00011308,2]
[346836254,1735314650675,-500.0,0.00011308,2]
[346836255,1735314650684,-500.0,0.00011308,2]
[346836256,1735314650694,-437.71568228,0.00011308,2]
[346836257,1735314650703,-2282.93,0.00011308,2]
[346836258,1735314650713,-500.0,0.00011308,2]
[346836259,1735314650723,-500.0,0.00011308,2]
[346836260,1735314650733,-611.24,0.00011308,2]
[346836261,1735314650743,-500.0,0.00011308,2]
[346836262,1735314650753,-2535.13,0.00011308,2]
[346836263,1735314650763,-500.0,0.00011308,2]
[346836264,1735314650773,-780.37,0.00011308,2]
[346836265,1735314650783,-500.0,0.00011308,2]
[346836266,1735314650793,-500.0,0.00011308,2]
[346836267,1735314650803,-179.72,0.00011308,2]
[346836268,1735314650813,-500.0,0.00011308,2]
[346836269,1735314650823,-712.42,0.00011308,2]
[346836270,1735314650833,-4155.17,0.00011308,2]
[346836271,1735314650842,-500.0,0.00011308,2]
[346836272,1735314650852,-3234.99,0.00011308,2]
[346836273,1735314650863,-566.16,0.00011308,2]
[346836274,1735314650873,-786.83,0.00011308,2]
[346836275,1735314650883,-500.0,0.00011308,2]
[346836276,1735314650892,-860.62,0.00011308,2]
[346836277,1735314650902,-500.0,0.00011308,2]
[346836278,1735314650912,-500.0,0.00011308,2]
[346836279,1735314650922,-428.71239981,0.00011308,2]
[346836280,1735314650935,-12170.52,0.00011308,2]
[346836281,1735314650945,-836.32,0.00011308,2]
[346836282,1735314650955,-180.10361779,0.00011308,2]
[346836283,1735314650966,-2010.96,0.00011308,2]
[346836284,1735314650976,-500.0,0.00011308,2]
[346836285,1735314650986,-2213.47,0.00011308,2]
[346836286,1735314650996,-500.0,0.00011308,2]
[346836287,1735314651006,-500.0,0.00011308,2]
[346836288,1735314651016,-1252.58,0.00011308,2]
[346836289,1735314651026,-2718.09,0.00011308,2]
[346836290,1735314651037,-500.0,0.00011308,2]
[346836291,1735314651047,-732.35,0.00011308,2]
[346836292,1735314651058,-500.0,0.00011308,2]
[346836293,1735314651069,-4595.98,0.00011308,2]
[346836294,1735314651079,-500.0,0.00011308,2]
[346836295,1735314651089,-500.0,0.00011308,2]
[346836296,1735314651099,-14998.88,0.00011308,2]
[346836297,1735314651110,-527.58,0.00011308,2]
[346836298,1735314651120,-1032.83,0.00011308,2]
[346836299,1735314651129,-626.37,0.00011308,2]
[346836300,1735314651139,-500.0,0.00011308,2]
[346836301,1735314651150,-2085.47,0.00011308,2]
[346836302,1735314651159,-1290.23,0.00011308,2]
[346836303,1735314651169,-567.06,0.00011308,2]
[346836304,1735314651179,-500.0,0.00011308,2]
[346836305,1735314651189,-1488.05,0.00011308,2]
[346836306,1735314651199,-500.0,0.00011308,2]
[346836307,1735314651209,-783.63,0.00011308,2]
[346836308,1735314651218,-500.0,0.00011308,2]
[346836309,1735314651227,-500.0,0.00011308,2]
[346836310,1735314651237,-500.0,0.00011308,2]
[346836311,1735314651246,-1477.63,0.00011308,2]
[346836312,1735314651255,-847.81,0.00011308,2]
[346836313,1735314651265,-500.0,0.00011309,2]
[346836314,1735314651275,-827.73,0.00011309,2]
[346836315,1735314651285,-516.5,0.00011309,2]
[346836316,1735314651295,-983.17,0.00011309,2]
[346836317,1735314651306,-500.0,0.00011309,2]
[346836318,1735314651315,-739.14,0.00011309,2]
[346836319,1735314651325,-1387.39,0.00011309,2]
[346836320,1735314651335,-1079.48,0.00011309,2]
[346836321,1735314651345,-946.91,0.00011309,2]
[346836322,1735314651355,-1299.31,0.00011309,2]
[346836323,1735314651365,-814.72,0.00011309,2]
[346836324,1735314651375,-500.0,0.00011309,2]
[346836325,1735314651384,-724.25,0.00011309,2]
[346836326,1735314651394,-522.75,0.00011309,2]
[346836327,1735314651404,-680.08,0.00011309,2]
[346836328,1735314651414,-1198.62,0.00011309,2]
[346836329,1735314651426,-1102.13,0.00011309,2]
[346836330,1735314651440,-638.59,0.00011309,2]
[346836331,1735314651452,-501.65,0.00011309,2]
[346836332,1735314651464,-1348.88,0.00011309,2]
[346836333,1735314651473,-530.54,0.00011309,2]
[346836334,1735314651483,-500.0,0.00011309,2]
[346836335,1735314651494,-1208.94,0.00011309,2]
[346836336,1735314651504,-609.11,0.00011309,2]
[346836337,1735314651513,-500.0,0.00011309,2]
[346836338,1735314651523,-509.01,0.00011309,2]
[346836339,1735314651533,-500.0,0.00011309,2]
[346836340,1735314651542,-500.0,0.00011309,2]
[346836341,1735314651552,-500.0,0.00011309,2]
[346836342,1735314651561,-500.0,0.00011309,2]
[346836343,1735314651570,-685.05,0.00011309,2]
[346836344,1735314651580,-500.0,0.00011309,2]
[346836345,1735314651589,-1216.66,0.00011309,2]
[346836346,1735314651599,-710.2,0.00011309,2]
[346836347,1735314651610,-620.77,0.00011309,2]
[346836348,1735314651619,-1636.92,0.00011309,2]
[346836349,1735314651710,-920.08,0.00011309,2]
[346836350,1735314651720,-2109.62,0.00011309,2]
[346836351,1735314651729,-917.58,0.00011309,2]
[346836352,1735314651738,-1778.375056,0.00011309,2]
[346836353,1735314651748,-526.48,0.00011309,2]
[346836354,1735314651757,-500.0,0.00011309,2]
[346836355,1735314651766,-1720.346607,0.00011309,2]
[346836356,1735314651776,-1621.01,0.00011309,2]
[346836357,1735314651785,-500.0,0.00011309,2]
[346836358,1735314651795,-556.15,0.00011309,2]
[346836359,1735314651804,-500.0,0.00011309,2]
[346836360,1735314651814,-1530.41,0.00011309,2]
[346836361,1735314651823,-500.0,0.00011309,2]
[346836362,1735314651833,-831.45,0.00011309,2]
[346836363,1735314651843,-500.0,0.00011309,2]
[346836364,1735314651852,-921.98,0.00011309,2]
[346836365,1735314651865,-1263.38,0.00011309,2]
[346836366,1735314651875,-797.29,0.00011309,2]
[346836367,1735314651884,-500.0,0.00011309,2]
[346836368,1735314651894,-786.03,0.00011309,2]
[346836369,1735314651904,-796.43,0.00011309,2]
[346836370,1735314651913,-1765.58,0.00011309,2]
[346836371,1735314651923,-828.91,0.00011309,2]
[346836372,1735314651935,-1172.53,0.00011309,2]
[346836373,1735314651948,-663.52,0.00011309,2]
[346836374,1735314651957,-853.02,0.00011309,2]
[346836375,1735314651967,-906.97,0.00011309,2]
[346836376,1735314651978,-529.27,0.00011309,2]
[346836377,1735314651987,-1333.87,0.00011309,2]
[346836378,1735314651997,-1319.49,0.00011309,2]
[346836379,1735314652007,-4887.77,0.00011309,2]
[346836380,1735314652017,-500.0,0.00011309,2]
[346836381,1735314652028,-2237.93,0.00011309,2]
[346836382,1735314652038,-1001.93,0.00011309,2]
[346836383,1735314652047,-3222.46,0.00011309,2]
[346836384,1735314652057,-500.0,0.00011309,2]
[346836385,1735314652066,-3359.7,0.00011309,2]
[346836386,1735314652076,-2309.81,0.00011309,2]
[346836387,1735314652086,-1328.75,0.00011309,2]
[346836388,1735314652096,-39475.47,0.00011309,2]
[346836389,1735314652105,-738.47,0.00011309,2]
[346836390,1735314652115,-1652.9,0.00011309,2]
[346836391,1735314652124,-1428.82,0.00011309,2]
[346836392,1735314652134,-1137.14,0.00011309,2]
[346836393,1735314652144,-6543.56,0.00011309,2]
[346836394,1735314652153,-827.87,0.00011309,2]
[346836395,1735314652163,-1530.1,0.00011309,2]
[346836396,1735314652172,-1433.86,0.00011309,2]
[346836397,1735314652182,-500.0,0.00011309,2]
[346836398,1735314652192,-2242.5,0.00011309,2]
[346836399,1735314652202,-5641.59,0.00011309,2]
[346836400,1735314652211,-1502.68,0.00011309,2]
[346836401,1735314652221,-873.88,0.00011309,2]
[346836402,1735314652231,-1482.82,0.00011309,2]
[346836403,1735314652240,-1564.53,0.00011309,2]
[346836404,1735314652250,-1281.87,0.00011309,2]
[346836405,1735314652259,-2606.52,0.00011309,2]
[346836406,1735314652270,-3689.63,0.00011309,2]
[346836407,1735314652280,-1463.07,0.00011309,2]
[346836408,1735314652291,-500.0,0.00011309,2]
[346836409,1735314652301,-4396.81,0.00011309,2]
[346836410,1735314652311,-1299.45,0.00011309,2]
[346836411,1735314652321,-1438.28,0.00011309,2]
[346836412,1735314652331,-3302.06,0.00011309,2]
[346836413,1735314652340,-1819.62,0.00011309,2]
[346836414,1735314652350,-2202.95,0.00011309,2]
[346836415,1735314652362,-1269.62,0.00011309,2]
[346836416,1735314652373,-2188.83,0.00011309,2]
[346836417,1735314652383,-1996.33,0.00011309,2]
[346836418,1735314652393,-1486.8,0.00011309,2]
[346836419,1735314652403,-500.0,0.00011309,2]
[346836420,1735314652413,-803.93,0.00011309,2]
[346836421,1735314652423,-1150.91,0.00011309,2]
[346836422,1735314652432,-500.0,0.00011309,2]
[346836423,1735314652443,-2855.56,0.00011309,2]
[346836424,1735314652452,-2947.89,0.00011309,2]
[346836425,1735314652461,-1812.15,0.00011309,2]
[346836426,1735314652471,-561.88,0.00011309,2]
[346836427,1735314652480,-2503.79,0.00011309,2]
[346836428,1735314652490,-1607.89,0.00011309,2]
[346836429,1735314652501,-562.9,0.00011309,2]
[346836430,1735314652510,-1153.58,0.00011309,2]
[346836431,1735314652519,-3283.5,0.00011309,2]
[346836432,1735314652528,-626.48,0.0001131,2]
[346836433,1735314652538,-500.0,0.0001131,2]
[346836434,1735314652548,-500.0,0.0001131,2]
[346836435,1735314652557,-550.51,0.0001131,2]
[346836436,1735314652567,-1337.0,0.0001131,2]
[346836437,1735314652577,-597.32,0.0001131,2]
[346836438,1735314652586,-500.0,0.0001131,2]
[346836439,1735314652596,-727.75,0.0001131,2]
[346836440,1735314652605,-733.48,0.0001131,2]
[346836441,1735314652615,-530.32,0.0001131,2]
[346836442,1735314652624,-500.0,0.0001131,2]
[346836443,1735314652634,-500.0,0.0001131,2]
[346836444,1735314652643,-500.0,0.0001131,2]
[346836445,1735314652652,-877.44,0.0001131,2]
[346836446,1735314652662,-500.0,0.0001131,2]
[346836447,1735314652671,-600.94,0.0001131,2]
[346836448,1735314652681,-500.0,0.0001131,2]
[346836449,1735314652690,-500.0,0.0001131,2]
[346836450,1735314652699,-500.0,0.0001131,2]
[346836451,1735314652709,-500.0,0.0001131,2]
[346836452,1735314652719,-766.04,0.0001131,2]
[346836453,1735314652728,-500.0,0.0001131,2]
[346836454,1735314652737,-299.25431283,0.0001131,2]
[346836455,1735314652747,-500.0,0.0001131,2]
[346836456,1735314652756,-500.0,0.0001131,2]
[346836457,1735314652766,-925.46,0.0001131,2]
[346836458,1735314652776,-786.15,0.0001131,2]
[346836459,1735314652786,-560.73,0.0001131,2]
[346836460,1735314652795,-500.0,0.0001131,2]
[346836461,1735314652805,-896.62,0.0001131,2]
[346836462,1735314652814,-512.97,0.0001131,2]
[346836463,1735314652824,-500.0,0.0001131,2]
[346836464,1735314652833,-548.71,0.0001131,2]
[346836465,1735314652842,-500.0,0.0001131,2]
[346836466,1735314652852,-194.49902635,0.0001131,2]
[346836467,1735314652863,-500.0,0.0001131,2]
[346836468,1735314652873,-1165.55,0.0001131,2]
[346836469,1735314652882,-500.0,0.0001131,2]
[346836470,1735314652892,-500.0,0.0001131,2]
[346836471,1735314652902,-693.77,0.0001131,2]
[346836472,1735314652911,-1248.5,0.0001131,2]
[346836473,1735314652921,-500.0,0.0001131,2]
[346836474,1735314652932,-872.03,0.0001131,2]
[346836475,1735314652943,-500.0,0.0001131,2]
[346836476,1735314652953,-514.99,0.0001131,2]
[346836477,1735314652963,-732.46,0.0001131,2]
[346836478,1735314652973,-917.39,0.0001131,2]
[346836479,1735314652982,-500.0,0.0001131,2]
[346836480,1735314652991,-500.0,0.0001131,2]
[346836481,1735314653001,-500.0,0.0001131,2]
[346836482,1735314653010,-500.0,0.0001131,2]
[346836483,1735314653020,-917.06,0.0001131,2]
[346836484,1735314653029,-500.0,0.0001131,2]
[346836485,1735314653039,-1047.31,0.0001131,2]
[346836486,1735314653048,-518.22,0.0001131,2]
[346836487,1735314653058,-1018.77,0.0001131,2]
[346836488,1735314653068,-805.78,0.0001131,2]
[346836489,1735314653077,-2067.35,0.0001131,2]
[346836490,1735314653087,-1076.75,0.0001131,2]
[346836491,1735314653096,-694.87,0.0001131,2]
[346836492,1735314653108,-500.0,0.0001131,2]
[346836493,1735314653119,-500.0,0.0001131,2]
[346836494,1735314653128,-714.69,0.0001131,2]
[346836495,1735314653138,-1364.79,0.0001131,2]
[346836496,1735314653149,-1049.39,0.0001131,2]
[346836497,1735314653160,-1576.91,0.0001131,2]
[346836498,1735314653169,-500.0,0.0001131,2]
[346836499,1735314653178,-1453.1,0.0001131,2]
[346836500,1735314653188,-1804.26,0.0001131,2]
[346836501,1735314653197,-500.0,0.0001131,2]
[346836502,1735314653207,-500.0,0.0001131,2]
[346836503,1735314653217,-808.62,0.0001131,2]
[346836504,1735314653226,-900.15,0.0001131,2]
[346836505,1735314653236,-500.0,0.0001131,2]
[346836506,1735314653246,-500.0,0.0001131,2]
[346836507,1735314653255,-1005.2,0.0001131,2]
[346836508,1735314653266,-500.0,0.0001131,2]
[346836509,1735314653276,-1522.85,0.0001131,2]
[346836510,1735314653285,-703.26,0.0001131,2]
[346836511,1735314653295,-500.0,0.0001131,2]
[346836512,1735314653304,-1274.7,0.0001131,2]
[346836513,1735314653314,-500.0,0.0001131,2]
[346836514,1735314653323,-1041.83,0.0001131,2]
[346836515,1735314653332,-899.63,0.0001131,2]
[346836516,1735314653342,-533.01,0.0001131,2]
[346836517,1735314653351,-558.98,0.0001131,2]
[346836518,1735314653367,-546.01,0.0001131,2]
[346836519,1735314653376,-831.44,0.0001131,2]
[346836520,1735314653385,-674.82,0.0001131,2]
[346836521,1735314653395,-500.0,0.0001131,2]
[346836522,1735314653404,-516.33,0.0001131,2]
[346836523,1735314653414,-804.91,0.0001131,2]
[346836524,1735314653423,-887.21,0.0001131,2]
[346836525,1735314653433,-517.58,0.0001131,2]
[346836526,1735314653442,-1176.98,0.0001131,2]
[346836527,1735314653452,-500.0,0.0001131,2]
[346836528,1735314653462,-500.0,0.0001131,2]
[346836529,1735314653471,-500.0,0.0001131,2]
[346836530,1735314653481,-1127.4,0.0001131,2]
[346836531,1735314653490,-751.09,0.0001131,2]
[346836532,1735314653500,-500.0,0.0001131,2]
[346836533,1735314653509,-500.0,0.0001131,2]
[346836534,1735314653519,-822.15,0.0001131,2]
[346836535,1735314653528,-152.27944255,0.0001131,2]
[346836536,1735314653537,-1214.02,0.0001131,2]
[346836537,1735314653547,-1373.05,0.0001131,2]
[346836538,1735314653557,-500.0,0.0001131,2]
[346836539,1735314653567,-514.52,0.0001131,2]
[346836540,1735314653576,-500.0,0.0001131,2]
[346836541,1735314653585,-2479.03,0.0001131,2]
[346836542,1735314653594,-1036.18,0.0001131,2]
[346836543,1735314653607,-500.0,0.0001131,2]
[346836544,1735314653617,-500.0,0.0001131,2]
[346836545,1735314653626,-500.0,0.0001131,2]
[346836546,1735314653636,-593.28,0.0001131,2]
[346836547,1735314653645,-1135.22,0.0001131,2]
[346836548,1735314653654,-934.11,0.0001131,2]
[346836549,1735314653663,-637.79,0.0001131,2]
[346836550,1735314653672,-525.93,0.0001131,2]
[346836551,1735314653682,-500.0,0.0001131,2]
[346836552,1735314653693,-599.43,0.0001131,2]
[346836553,1735314653702,-895.08,0.0001131,2]
[346836554,1735314653712,-2150.28,0.0001131,2]
[346836555,1735314653722,-1043.81,0.0001131,2]
[346836556,1735314653731,-604.42,0.0001131,2]
[346836557,1735314653742,-818.91,0.0001131,2]
[346836558,1735314653751,-500.0,0.0001131,2]
[346836559,1735314653762,-1041.25,0.0001131,2]
[346836560,1735314653772,-517.22,0.0001131,2]
[346836561,1735314653781,-513.86949885,0.0001131,2]
[346836562,1735314653792,-715.27,0.0001131,2]
[346836563,1735314653801,-500.0,0.0001131,2]
[346836564,1735314653811,-500.0,0.0001131,2]
[346836565,1735314653820,-500.0,0.0001131,2]
[346836566,1735314653830,-500.0,0.0001131,2]
[346836567,1735314653840,-1344.57,0.0001131,2]
[346836568,1735314653850,-500.0,0.0001131,2]
[346836569,1735314653864,-500.0,0.0001131,2]
[346836570,1735314653874,-500.0,0.0001131,2]
[346836571,1735314653884,-500.0,0.0001131,2]
[346836572,1735314653894,-500.0,0.0001131,2]
[346836573,1735314653903,-1656.18,0.0001131,2]
[346836574,1735314653912,-875.18,0.0001131,2]
[346836575,1735314653922,-500.0,0.0001131,2]
[346836576,1735314653933,-1190.1,0.0001131,2]
[346836577,1735314653946,-510.8,0.0001131,2]
[346836578,1735314653956,-872.87,0.0001131,2]
[346836579,1735314653966,-1457.75,0.0001131,2]
[346836580,1735314653976,-500.0,0.0001131,2]
[346836581,1735314653987,-587.57,0.0001131,2]
[346836582,1735314653997,-500.0,0.0001131,2]
[346836583,1735314654007,-1193.41,0.0001131,2]
[346836584,1735314654018,-2007.61,0.0001131,2]
[346836585,1735314654028,-615.52,0.0001131,2]
[346836586,1735314654038,-828.05,0.0001131,2]
[346836587,1735314654048,-1098.08,0.0001131,2]
[346836588,1735314654058,-500.0,0.0001131,2]
[346836589,1735314654068,-2339.33,0.0001131,2]
[346836590,1735314654079,-500.0,0.0001131,2]
[346836591,1735314654089,-500.0,0.0001131,2]
[346836592,1735314654099,-967.13,0.0001131,2]
[346836593,1735314654112,-427.87859403,0.0001131,2]
[346836594,1735314654122,-500.0,0.0001131,2]
[346836595,1735314654131,-500.0,0.0001131,2]
[346836596,1735314654141,-500.0,0.0001131,2]
[346836597,1735314654152,-783.21,0.0001131,2]
[346836598,1735314654162,-972.12,0.0001131,2]
[346836599,1735314654172,-1407.61,0.0001131,2]
[346836600,1735314654182,-1003.62,0.0001131,2]
[346836601,1735314654192,-588.68640571,0.0001131,2]
[346836602,1735314654202,-500.0,0.0001131,2]
[346836603,1735314654212,-517.33811703,0.0001131,2]
[346836604,1735314654222,-1415.57,0.0001131,2]
[346836605,1735314654232,-1337.59,0.0001131,2]
[346836606,1735314654242,-1109.49,0.0001131,2]
[346836607,1735314654252,-918.69,0.0001131,2]
[346836608,1735314654261,-1046.01,0.0001131,2]
[346836609,1735314654271,-1044.43,0.0001131,2]
[346836610,1735314654281,-1092.51,0.0001131,2]
[346836611,1735314654290,-1660.01,0.0001131,2]
[346836612,1735314654300,-500.0,0.0001131,2]
[346836613,1735314654310,-2099.48,0.0001131,2]
[346836614,1735314654319,-500.0,0.0001131,2]
[346836615,1735314654329,-812.6,0.0001131,2]
[346836616,1735314654339,-2313.17,0.0001131,2]
[346836617,1735314654348,-500.0,0.0001131,2]
[346836618,1735314654360,-327.02537615,0.0001131,2]
[346836619,1735314654371,-500.0,0.0001131,2]
[346836620,1735314654380,-500.98,0.0001131,2]
[346836621,1735314654390,-500.0,0.0001131,2]
[346836622,1735314654400,-594.1,0.0001131,2]
[346836623,1735314654409,-953.94,0.0001131,2]
[346836624,1735314654419,-500.0,0.0001131,2]
[346836625,1735314654429,-1065.43,0.0001131,2]
[346836626,1735314654439,-750.72,0.0001131,2]
[346836627,1735314654449,-932.99,0.0001131,2]
[346836628,1735314654459,-1324.25,0.0001131,2]
[346836629,1735314654468,-592.17,0.0001131,2]
[346836630,1735314654478,-598.73,0.0001131,2]
[346836631,1735314654488,-500.0,0.0001131,2]
[346836632,1735314654498,-1225.75,0.0001131,2]
[346836633,1735314654507,-1238.27,0.0001131,2]
[346836634,1735314654517,-852.84,0.0001131,2]
[346836635,1735314654527,-500.0,0.0001131,2]
[346836636,1735314654538,-1250.24,0.0001131,2]
[346836637,1735314654547,-2128.31,0.0001131,2]
[346836638,1735314654558,-525.54,0.0001131,2]
[346836639,1735314654568,-1453.62,0.0001131,2]
[346836640,1735314654577,-1555.98,0.0001131,2]
[346836641,1735314654587,-553.26,0.0001131,2]
[346836642,1735314654597,-500.0,0.0001131,2]
[346836643,1735314654609,-2479.56,0.0001131,2]
[346836644,1735314654619,-500.0,0.0001131,2]
[346836645,1735314654628,-500.0,0.0001131,2]
[346836646,1735314654639,-2259.33,0.0001131,2]
[346836647,1735314654648,-500.0,0.0001131,2]
[346836648,1735314654658,-562.15,0.0001131,2]
[346836649,1735314654668,-540.97,0.0001131,2]
[346836650,1735314654678,-578.24,0.0001131,2]
[346836651,1735314654688,-1046.46,0.0001131,2]
[346836652,1735314654697,-516.89,0.0001131,2]
[346836653,1735314654707,-719.96,0.0001131,2]
[346836654,1735314654717,-2180.48,0.00011311,2]
[346836655,1735314654727,-2636.7,0.00011311,2]
[346836656,1735314654738,-3214.32,0.00011311,2]
[346836657,1735314654748,-2198.14,0.00011311,2]
[346836658,1735314654758,-5513.14,0.00011311,2]
[346836659,1735314654768,-3304.63,0.00011311,2]
[346836660,1735314654777,-15099.28,0.00011311,2]
[346836661,1735314654787,-9411.99,0.00011311,2]
[346836662,1735314654796,-500.0,0.00011311,2]
[346836663,1735314654806,-500.0,0.00011311,2]
[346836664,1735314654816,-500.0,0.00011311,2]
[346836665,1735314654826,-554.09630562,0.00011311,2]
[346836666,1735314654838,-1428.14,0.00011311,2]
[346836667,1735314654848,-1285.3,0.00011311,2]
[346836668,1735314654859,-500.0,0.00011311,2]
[346836669,1735314654869,-1050.04,0.00011311,2]
[346836670,1735314654879,-1139.88,0.00011311,2]
[346836671,1735314654889,-1849.16,0.00011311,2]
[346836672,1735314654899,-4460.96,0.00011311,2]
[346836673,1735314654909,-1294.45,0.00011311,2]
[346836674,1735314654919,-1061.59,0.00011311,2]
[346836675,1735314654930,-1105.15,0.00011311,2]
[346836676,1735314654945,-26313.55,0.00011311,2]
[346836677,1735314654955,-500.0,0.00011311,2]
[346836678,1735314654966,-1754.47,0.00011311,2]
[346836679,1735314654976,-1268.1,0.00011311,2]
[346836680,1735314654986,-1451.39,0.00011311,2]
[346836681,1735314654997,-1278.18,0.00011311,2]
[346836682,1735314655008,-500.0,0.00011311,2]
[346836683,1735314655018,-1799.03,0.00011311,2]
[346836684,1735314655029,-807.86,0.00011311,2]
[346836685,1735314655039,-2017.1,0.00011311,2]
[346836686,1735314655050,-869.13,0.00011311,2]
[346836687,1735314655060,-500.0,0.00011311,2]
[346836688,1735314655070,-1343.09,0.00011311,2]
[346836689,1735314655080,-1994.25,0.00011311,2]
[346836690,1735314655090,-5849.07,0.00011311,2]
[346836691,1735314655100,-2130.16,0.00011311,2]
[346836692,1735314655112,-1333.4,0.00011311,2]
[346836693,1735314655122,-8303.21,0.00011311,2]
[346836694,1735314655132,-1018.72,0.00011311,2]
[346836695,1735314655142,-3267.15,0.00011311,2]
[346836696,1735314655152,-1475.34,0.00011311,2]
[346836697,1735314655161,-1034.53,0.00011311,2]
[346836698,1735314655172,-11879.75,0.00011311,2]
[346836699,1735314655182,-2836.16,0.00011311,2]
[346836700,1735314655192,-2086.16,0.00011311,2]
[346836701,1735314655203,-2544.72,0.00011311,2]
[346836702,1735314655214,-3035.61,0.00011311,2]
[346836703,1735314655224,-3089.48,0.00011311,2]
[346836704,1735314655234,-821.48,0.00011311,2]
[346836705,1735314655243,-2766.05,0.00011311,2]
[346836706,1735314655253,-6643.89,0.00011311,2]
[346836707,1735314655263,-977.3,0.00011311,2]
[346836708,1735314655274,-876.0,0.00011311,2]
[346836709,1735314655285,-2061.18,0.00011311,2]
[346836710,1735314655295,-1293.12,0.00011311,2]
[346836711,1735314655306,-572.68,0.00011311,2]